Cogmind - Beta 13 @@@ ROGUE MODE // 2024.05.28 @ 00:00:22 Player: Heliostats Result: Destroyed by SD-BZ8(R) with Subdweller Machine Gun Performance ------------- Evolutions (0) 0 Regions Visited (2) 400 Robots Destroyed (32) 160 Value Destroyed (709) 709 Prototype IDs (12) 240 Alien Tech Used (0) 0 Bonus (0) 0 TOTAL SCORE: 1509 Bonus ------- None Cogmind --------- Core Integrity 0/250 Matter 225/300 Energy 100/100 System Corruption 3% Temperature Cool (1) Movement Flying (40) Location -10/Subcaves Parts ------- > --- POWER (1) -------- (None) > --- PROPULSION (2) --- Flight Unit > --- UTILITY (2) ------ Structural Scanner Signal Interpreter > --- WEAPON (2) ------- Battle Cannon > --- INVENTORY (5) ---- Flightbrick Makeshift Light Armor Plating Peak State ------------ > --- POWER ------------ Light Ion Engine > --- PROPULSION ------- Flight Unit Flight Unit > --- UTILITY ---------- Structural Scanner Signal Interpreter > --- WEAPON ----------- Battle Cannon > --- INVENTORY -------- Flightbrick Makeshift Light Armor Plating [Rating: 11] Favorites ----------- Power Light Ion Engine Engine Light Ion Engine Propulsion Flight Unit Leg Aluminum Leg Flight Unit Flight Unit Utility Signal Interpreter Device Sensor Array Storage Small Storage Unit Processor Signal Interpreter Weapon EM Pulse Gun Energy Gun EM Pulse Gun Ballistic Gun Light Assault Rifle Ballistic Cannon Battle Cannon Launcher Subdweller Shrapnel Launcher Special Weapon Mining Laser Build | -11 -10 -10 ------- Run | Yrd Mat Sub Slots Evolved . | . . . Power . | . . . Propulsion . | . . . Utility . | . . . Weapon . | . . . Parts Attached 46 | 6 21 19 Power 3 | 1 2 . Engine 3 | 1 2 . Core . | . . . Reactor . | . . . Propulsion 9 | 2 4 3 Treads . | . . . Leg 2 | 2 . . Wheel . | . . . Hover . | . . . Flight 7 | . 4 3 Utility 10 | 1 4 5 Device 8 | . 3 5 Storage 1 | 1 . . Processor 1 | . 1 . Hackware . | . . . Protection . | . . . Artifact . | . . . Weapon 24 | 2 11 11 Energy Gun 10 | 1 7 2 Energy Cannon . | . . . Ballistic Gun 7 | 1 1 5 Ballistic Cannon 2 | . 1 1 Launcher 2 | . . 2 Special Weapon 3 | . 2 1 Impact Weapon . | . . . Slashing Weapon . | . . . Piercing Weapon . | . . . Special Melee Weapon . | . . . Unidentified Prototypes . | . . . Parts Lost 6 | . 1 5 Power 1 | . . 1 Propulsion 1 | . . 1 Utility 1 | . . 1 Weapon 3 | . 1 2 Highest Loss Streak 2 | . 1 2 To Critical Strikes . | . . . Average Slot Usage (%) 94 | . 98 86 Engine 13 | . 14 13 Leg 1 | . 2 . Flight 26 | . 25 27 Device 14 | . 15 14 Processor 12 | . 11 14 Energy Gun 17 | . 24 4 Ballistic Gun 3 | . 2 4 Ballistic Cannon 2 | . . 6 Naked Turns . | . . . Heaviest Build 14 | 11 13 14 Greatest Support 20 | 20 20 8 Greatest Overweight (x) 2 | . 2 1 Average Overweight (x) . | . . . Largest Inventory Capacity 8 | 8 8 5 Average Capacity 5 | 6 5 5 Most Carried 5 | 5 5 5 Average Carried 4 | 1 4 4 Final Capacity 8 | 8 5 5 Final Carried 5 | 1 5 5 Class Distribution -------------------- 100% | Mutant Dominant Class ---------------- Mutant | -10/Materials Mutant | -10/Subcaves Resources | -11 -10 -10 ----------- Run | Yrd Mat Sub Matter Collected 1066 | 144 374 548 Remotely . | . . . Salvage Created 931 | . 638 293 Parts 66 | . 48 18 Haulers Intercepted 2 | . 2 . Recyclers Shooed 1 | . 1 . Parts Field Recycled . | . . . Retrieved Matter . | . . . Parts Self-Destructed 21 | . . 21 Prevented 4 | . . 4 Kills | -11 -10 -10 ------- Run | Yrd Mat Sub Combat Hostiles Destroyed 22 | . 12 10 Guns 14 | . 9 5 Cannons 5 | . 1 4 AOE 3 | . 2 1 Classes Destroyed 8 | . 6 2 Tunneler 2 | . 2 . Hauler 2 | . 2 . Operator 1 | . 1 . Turret 2 | . . 2 Watcher 3 | . 3 . Swarmer 10 | . 6 4 Grunt 6 | . 6 . Subdweller 6 | . . 6 Best Kill Streak 4 | . 4 4 Combat Bots Only 4 | . 3 4 Max Kills in Single Turn 2 | . 2 1 Gunslinging . | . . . Exploded 2 | . 2 1 Melee . | . . . Uniques/NPCs Destroyed . | . . . Combat | -11 -10 -10 -------- Run | Yrd Mat Sub Hostile Shots Fired 125 | . 51 74 Missed 51 | . 19 32 Damage Taken 765 | . 279 486 Core 262 | . 30 232 Absorbed by Shields . | . . . Regen/Repaired (Parts) 47 | . 47 . Core Remaining (%) 100 | 100 . . Volleys Fired 161 | . 67 94 Largest 2 | . 2 2 Hottest 100 | . 100 100 Shots Fired 240 | . 130 110 Gun 173 | . 124 49 Cannon 63 | . 5 58 Launcher 3 | . . 3 Special 1 | . 1 . Kinetic 110 | . 28 82 Thermal 27 | . 19 8 Explosive . | . . . Electromagnetic 103 | . 83 20 Robot Hit Streak 10 | . 10 9 Robot Miss Streak 5 | . 5 4 Penetration Max . | . . . Secondary Targets . | . . . Shots Hit Robots 109 | . 67 42 Core Hits 43 | . 27 16 Critical Kills . | . . . Critical Parts Destroyed . | . . . Critical Strikes 3 | . 2 1 Burn 1 | . 1 . Blast 1 | . . 1 Corrupt 1 | . 1 . Melee Attacks . | . . . Impact . | . . . Slashing . | . . . Piercing . | . . . Sneak Attacks . | . . . Combat Hostiles . | . . . Follow-up Attacks . | . . . Damage Inflicted 2130 | . 1201 929 Guns 1316 | . 1028 288 Cannons 446 | . 20 426 Explosions 358 | . 143 215 Melee . | . . . Ramming 10 | . 10 . Kinetic 820 | . 155 665 Thermal 390 | . 258 132 Explosive . | . . . Electromagnetic 910 | . 778 132 Impact . | . . . Slashing . | . . . Piercing . | . . . Highest Corruption 3 | . 3 3 Average Corruption 2 | . 2 3 Corruption Purged . | . . . Corruption Blocked . | . . . Effects 35 | . 20 15 Message Errors 8 | . 6 2 Matter Fused 7 | . 4 3 Heat Flow Errors 2 | . 1 1 Energy Discharges 8 | . 3 5 Data Loss (minor) 3 | . 1 2 Misfires 3 | . 3 . Alerts 1 | . . 1 Weapon Failures 3 | . 2 1 Overload Shots . | . . . Overflow Damage . | . . . Projectiles . | . . . Explosions . | . . . Melee . | . . . Knockbacks 3 | . . 3 Impact . | . . . Kinetic 3 | . . 3 Secondary . | . . . Self-Inflicted Damage 24 | . 17 7 Shots 2 | . 1 1 Rammed . | . . . Targets Rammed . | . . . Kicked . | . . . Crushed . | . . . Highest Temperature 252 | . 252 216 Average Temperature 70 | . 70 83 Received Heat Transfer 186 | . 24 162 Siege Activations . | . . . Robots Corrupted . | . . . Combat Hostiles . | . . . Parts Fried 4 | . 4 . Impact Corruptions . | . . . Robots Melted . | . . . Combat Hostiles . | . . . Parts Melted . | . . . Heat Transferred 707 | . 557 150 Parts Sabotaged . | . . . Parts Stolen . | . . . Parts Stripped . | . . . Power Chain Reactions 3 | . 3 . Alert | -11 -10 -10 ------- Run | Yrd Mat Sub Peak Influence 287 | . 287 . Initial . | . . . Average 69 | . 72 . Maximum Alert Level 1 | . 1 . Low Security (%) 90 | 100 89 . Level 1 9 | . 10 . Level 2 . | . . . Level 3 . | . . . Level 4 . | . . . Level 5 . | . . . High Security . | . . . Max Security . | . . . Squads Dispatched 2 | . 2 . Investigation 1 | . 1 . Extermination . | . . . Reinforcement 1 | . 1 . Assault . | . . . Garrison . | . . . Intercept . | . . . Searches Triggered . | . . . Construction Impeded . | . . . Haulers Reinforced . | . . . Active Scanning Responses . | . . . Cargo Convoy Interrupts . | . . . Stealth | -11 -10 -10 --------- Run | Yrd Mat Sub Distress Signals . | . . . Communications Jammed . | . . . Distress Signals . | . . . Times Spotted 54 | . 21 33 Peak Tracking Total 6 | . 4 6 Tactical Retreats 5 | . . 5 Traps | -11 -10 -10 ------- Run | Yrd Mat Sub Traps Triggered 1 | . 1 . Indirectly . | . . . Trap Hack Attempts . | . . . Triggered . | . . . Disarmed 1 | . 1 . Reprogrammed . | . . . Reused . | . . . Traps Extracted . | . . . Installed . | . . . Triggered . | . . . Machines | -11 -10 -10 ---------- Run | Yrd Mat Sub Machines Disabled 5 | . 1 4 Max in Single Turn 3 | . 1 3 Machines Repaired . | . . . Machines Dismantled . | . . . Machines Sabotaged . | . . . Overloaded Fab Kills . | . . . Hacking | -11 -10 -10 --------- Run | Yrd Mat Sub Machines Accessed 9 | . 8 1 Terminals 5 | . 5 . Fabricators . | . . . Repair Stations 1 | . 1 . Recycling Units 2 | . 2 . Scanalyzers . | . . . Garrison Access . | . . . Total Hacks 32 | . 23 9 Successful 24 | . 15 9 Failed 8 | . 8 . Catastrophic 1 | . 1 . Database Lockouts . | . . . Manual . | . . . Terminals 16 | . 16 . Fabricators . | . . . Repair Stations 4 | . 4 . Recycling Units 3 | . 3 . Scanalyzers . | . . . Garrison Access . | . . . Terminal Hacks 17 | . 8 9 Record 8 | . . 8 Prototype ID Bank 1 | . 1 . Alert Level 2 | . 2 . Locate Traps 1 | . 1 . Disarm Traps 2 | . 2 . Dispatch Records 1 | . 1 . Transport Status 1 | . 1 . Derelict Proto ID Bank 1 | . . 1 Fabricator Hacks . | . . . Repair Station Hacks 4 | . 4 . Scan Component 2 | . 2 . Repair 2 | . 2 . Recycling Unit Hacks 3 | . 3 . Report Inventory 2 | . 2 . Retrieve Components 1 | . 1 . Scanalyzer . | . . . Garrison Access Hacks . | . . . Unauthorized Hacks . | . . . Terminals . | . . . Fabricators . | . . . Repair Stations . | . . . Recycling Units . | . . . Scanalyzers . | . . . Garrison Access . | . . . Data Cores Recovered . | . . . Used . | . . . Hacking Detections 5 | . 5 . Full Trace Events 5 | . 5 . Feedback Events . | . . . Feedback Blocked . | . . . Robot Schematics Acquired . | . . . Robots Built . | . . . Authchips . | . . . Time . | . . . Total Robot Build Rating . | . . . Part Schematics Acquired . | . . . Parts Built . | . . . Authchips . | . . . Time . | . . . Total Part Build Rating . | . . . Parts Repaired 2 | . 2 . Time 52 | . 52 . Parts Recycled . | . . . Recycled Matter . | . . . Retrieved Matter . | . . . Retrieved Components 9 | . 9 . Parts Scanalyzed . | . . . Part Schematics Acquired . | . . . Parts Damaged . | . . . Bothacking | -11 -10 -10 ------------ Run | Yrd Mat Sub Used RIF Installer . | . . . Robots Hacked . | . . . Non-combat . | . . . Combat . | . . . Robot Hacks Applied . | . . . Relay Couplers Released . | . . . Fabnet Peak Effective % . | . . . Robots Rewired . | . . . Allies Hacked . | . . . Hacks Repelled . | . . . Allies | -11 -10 -10 -------- Run | Yrd Mat Sub Total Allies . | . . . Largest Group . | . . . Highest-Rated Group . | . . . Highest-Rated Ally . | . . . Total Orders . | . . . Ally Attacks . | . . . Total Damage . | . . . Kills . | . . . Allies Corrupted . | . . . Allies Melted . | . . . Intel | -11 -10 -10 ------- Run | Yrd Mat Sub Robot Analysis Total . | . . . Derelict Logs Recovered 2 | . . 2 Drone Launches . | . . . Drone Recoveries . | . . . Exploration | -11 -10 -10 ------------- Run | Yrd Mat Sub Turns Passed 2228 | 60 1385 783 Spaces Moved 3107 | 47 1765 1295 Core 15 | 12 3 . Treads . | . . . Legs 108 | 35 73 . Wheels . | . . . Hover . | . . . Flight 2984 | . 1689 1295 Fastest Speed 37 | 50 37 37 Average Speed 41 | 102 40 40 Slowest Speed 150 | 120 150 117 Overloaded Moves . | . . . Propulsion Burnouts . | . . . Robots Hopped 11 | . 10 1 Cave-ins Triggered . | . . . Exploration Rate (%) 54 | 4 99 61 Regions Visited 2 Branch Regions 1 Pre-discovered Areas 1 | . . 1 Known Exits Taken . | . . . Unknown Exits Taken 2 | 1 1 . Scrap Searched 9 | . . 9 Spaces Dug 1 | . . 1 Terrain Destroyed 59 | . 8 51 Melee . | . . . Projectile 4 | . . 4 AOE 55 | . 8 47 Terrain Rammed 1 | . 1 . Walls Destroyed . | . . . Machines Disabled . | . . . Actions | -11 -10 -10 --------- Run | Yrd Mat Sub Total 3805 | 59 2295 1451 Wait 431 | . 419 12 Move 3084 | 46 1745 1293 Hop 10 | . 9 1 Pick Up 34 | 7 16 11 Fast Attach 10 | . 7 3 Attach 20 | 6 3 11 Detach 7 | . . 7 Swap 16 | . 11 5 Drop 31 | . 17 14 Fire 161 | . 67 94 Melee . | . . . Ram 1 | . 1 . Kick . | . . . Crush . | . . . Escape Stasis . | . . . Rewire . | . . . Trap . | . . . Miscellaneous . | . . . Route ------- -11/Scrapyard -10/Materials (discovered 5 exits: *Mat x3 / *Min / *Sub) -10/Subcaves (discovered 3 exits: *Mat x2 / *Rec) History --------- Turn | Location | Event 8 | -11/Scrapyard | Discovered new exit (range 15) 61 | -11/Scrapyard | Entered Materials 306 | -10/Materials | Build established: Mutant 333 | -10/Materials | Discovered new exit (range 15) 338 | -10/Materials | Identified exit to Materials 360 | -10/Materials | Discovered exit to Materials (range 15) 459 | -10/Materials | Discovered new exit (range 15) 465 | -10/Materials | Identified exit to Mines 953 | -10/Materials | Repaired Flight Unit 981 | -10/Materials | Repaired EM Pulse Gun 1226 | -10/Materials | Discovered exit to Materials (range 8) 1438 | -10/Materials | Discovered new exit (range 3) 1446 | -10/Materials | Entered Subcaves 1454 | -10/Subcaves | Learned Materials terminal intel 1459 | -10/Subcaves | Discovered new exit (range 13) 1538 | -10/Subcaves | Identified exit to Recycling 1673 | -10/Subcaves | Learned location of Recycling (-9) 1690 | -10/Subcaves | A swath of the cavern ceiling suddenly collapsed 1762 | -10/Subcaves | Visited 4L-MR0's lab 1788 | -10/Subcaves | Found Flightbrick 2083 | -10/Subcaves | Shifting Twisted Machinery released Mak. Light Armor Plating 2102 | -10/Subcaves | Discovered new exit (range 11) 2104 | -10/Subcaves | Discovered new exit (range 8) 2107 | -10/Subcaves | Identified exit to Materials 2149 | -10/Subcaves | Ambushed by Subdweller buried in earth 2156 | -10/Subcaves | Core integrity fell below 50% 2220 | -10/Subcaves | Core integrity fell below 20% 2229 | -10/Subcaves | Destroyed by SD-BZ8(R) with Subdweller Machine Gun Last Messages --------------- 02149_ JD-Q2J(R) comes tumbling out of the earth. 02160_ Acquired 6 matter. 02161_ Searching scrap... 02161_ Found Sub. Machine Gun. 02161_ Found Sub. Beam Cannon. 02161_ Found 23 Matter. 02166_ Acquired 15 matter. 02175_ System corrupted: Matter fused (-7). 02194_ Lgt. Ion Engine destroyed. 02199_ TF-8JE(R) destroyed. 02202_ Acquired 50 matter. 02202_ Acquired 1 matter. 02212_ System corrupted: Energy discharge (-21). 02212_ Subatomizers dissect the Disposable Heat Sink. 02217_ Flight Unit destroyed. 02217_ NK-UT1(R) knocked back. 02227_ Subatomizers dissect the Disposable Heat Sink. Map ----- +----------------------------------------------------+ | ##??????????????????????????????????? | | ## ### ?????????????????????## ?????????? | | #### ##### ?????????????????????### ?????????? | | ###########???????????????????????## ?????????? | | #######?????????????????????????### "##??????? | | ##??????????????????????????????### "###??????? | | ###?????????????????????????????## """##??????? | | ####????????????????????????????""""""###?????? | | ###??????????????????????????????##""###?????? | | ###????????????????????????"???#### ##?????? | | ####???????????????????????? ###### %##?????? | | ###????????????????????????" ###"% "##?????? | | ##???????"???""###???????"""" """ "######?? | | ##?????? ???"" #########""####""" ########? | | #####?????? ??? " ############ #### ###? | | #####????? ?????## "" ####### ### ##? | | ####### ? ##???## "" #### ### ##? | | ###"#### ? ######## ##"" R= ##? | | #####"" # ? ####### ### ! ###? | | ### ###"## ### ########### #### ###?? | | ##""##### # ## ###### ##### ###?? | | ##"##"## ?### #### ####### # ##?? | | ###""#### ### ### ####?### ### ###?? | | #####"####### ### ###??### ##?? | | ###"##""####### ## ###???## # ###?? | | #####?### #" ##### @ ####???### # ####?? | | #####??#### #### #### #####????### ####??? | | ########## # #############????### # # ##???? | | ######## # ###########??????## ### ###?? | | ##????????????## #### #### # | | ##????????????## ??### ###### | | #### ### ###????????????## ?### ####" | | #### ########????????????### ## # ## | | #?### ########?????????????#### " | | ??#### ###???????????????????### ### | | ???#### ####?????????????????????## ### | | ????#########??????????????????????????### ## | | ?????######????????????????????????????######## | | ????????????????????????????????????????####### | | ?????????????????????????????????????????###### | | ???????????????????????????????????????###### | | ????????????????????????????????# ???##### | | ????????????????????????????????## ?? ### | | ????????????????????????????????## ??### | | ????????????????????????????????## ??## | | ????????????????????????????????## ??### | | ????????????????????????????????## ##### ## | | ????????????????????????????????## ##### ##### | | ???????????????????????????????### ### ##### | | ???????????????????????????????### # ####### | +----------------------------------------------------+ Best States ------------- Heat Dissipation 25 Energy Generation 10 Energy Capacity 125 Matter Stores 300 Matter Capacity 300 Sight Range 21 Robot Scan Range 14 Terrain Scan Range 14 Terrain Scan Density 10 Evasion (%) 62 Item Schematics ----------------- None Robot Schematics ------------------ None Fabricated ------------ Nothing Alien Tech Used ----------------- None Achievements -------------- None Challenges ------------ None Game ------ Seed QuantumImprovedSpecial Manual? 0 Play Time 00:43:52 Cumulative 12.9 hours Start 2024.05.27 @ 23:09:12 End 2024.05.28 @ 00:00:22 Sessions 1 Manual Loads 0 Difficulty Rogue Special Mode None Game No. 16 Rogue 4 Adventurer 12 Explorer 0 Win Type - Total 0 Types 0/0/0/0/0/0/0/0/0 Lore% 17 Gallery% 19 Achievement% 15 Wizard Run 0 Options --------- Layout 1 ASCII 0 Keyboard 0 Movement Mouse Keybinds 0 Fullscreen 2 Font 24/Smallcaps Map View 50x35 Zoom Use 0% Tactical HUD 1 Map Filters NONE Filters NONE Steam 1 RUN: 548c280a-23a4-45ba-ae73-955d8d465efc